Cogmind - Beta 11.1 @@@ ROGUE MODE // 2022.06.25 @ 11:52:32 Player: AnthonyDPS 2004 Result: Self-destructed Performance ------------- Evolutions (1) 500 Regions Visited (2) 400 Robots Destroyed (9) 45 Value Destroyed (191) 191 Prototype IDs (0) 0 Alien Tech Used (0) 0 Bonus (0) 0 TOTAL SCORE: 1136 Bonus ------- None Cogmind --------- Core Integrity 192/400 Matter 300/300 Energy 100/100 System Corruption 0% Temperature Cool (0) Movement Core (2400) Ox47 Location -9/Materials Parts ------- > --- POWER (1) -------- (None) > --- PROPULSION (3) --- (None) > --- UTILITY (3) ------ Cargo Storage Unit > --- WEAPON (2) ------- Hammer > --- INVENTORY (30) --- Light Ion Engine Light Ion Engine Weight Redist. System Weight Redist. System Weight Redist. System Weight Redist. System Transport Network Coupler Field Recycling Unit (0) Field Recycling Unit (0) Field Recycling Unit (0) Field Recycling Unit (0) Assault Rifle Mace Mace Mace Mace Peak State ------------ > --- POWER ------------ Light Ion Engine > --- PROPULSION ------- Light Treads Light Treads > --- UTILITY ---------- Cargo Storage Unit Weight Redist. System > --- WEAPON ----------- Light Assault Rifle Light Assault Rifle > --- INVENTORY -------- Light Ion Engine Light Ion Engine Weight Redist. System Weight Redist. System Weight Redist. System Improved Terrain Scanner Transport Network Coupler Field Recycling Unit Field Recycling Unit Field Recycling Unit Field Recycling Unit Assault Rifle Hammer Mace Mace Mace Mace [Rating: 12] Favorites ----------- Power Ion Engine Engine Ion Engine Propulsion Wheel Treads Light Treads Wheel Wheel Utility Improved Terrain Scanner Device Improved Terrain Scanner Storage Cargo Storage Unit Weapon Light Assault Rifle Ballistic Gun Light Assault Rifle Impact Weapon Hammer Build | -11 -10 -9 ------- Run | Scr Mat Mat Slots Evolved 2 | . . 2 Power . | . . . Propulsion 1 | . . 1 Utility 1 | . . 1 Weapon . | . . . Parts Attached 16 | 8 4 4 Power 3 | 1 1 1 Engine 3 | 1 1 1 Core . | . . . Reactor . | . . . Propulsion 4 | 2 2 . Treads 2 | . 2 . Leg . | . . . Wheel 2 | 2 . . Hover . | . . . Flight . | . . . Utility 5 | 2 1 2 Device 3 | 1 . 2 Storage 2 | 1 1 . Processor . | . . . Hackware . | . . . Protection . | . . . Artifact . | . . . Weapon 4 | 3 . 1 Energy Gun . | . . . Energy Cannon . | . . . Ballistic Gun 3 | 3 . . Ballistic Cannon . | . . . Launcher . | . . . Special Weapon . | . . . Impact Weapon 1 | . . 1 Slashing Weapon . | . . . Piercing Weapon . | . . . Special Melee Weapon . | . . . Unidentified Prototypes . | . . . Parts Lost 6 | . . 6 Power 1 | . . 1 Propulsion 2 | . . 2 Utility 1 | . . 1 Weapon 2 | . . 2 Highest Loss Streak 6 | . . 6 To Critical Strikes 1 | . . 1 Average Slot Usage (%) 73 | . 97 45 Engine 9 | . 14 4 Treads 7 | . 5 9 Wheel 12 | . 22 . Device 8 | . 11 4 Storage 12 | . 14 11 Ballistic Gun 19 | . 28 8 Impact Weapon 2 | . . 6 Naked Turns . | . . . Heaviest Build 148 | 13 145 148 Greatest Support 40 | 20 40 40 Greatest Overweight (x) 47 | 3 3 47 Average Overweight (x) 3 | . . 11 Largest Inventory Capacity 30 | 8 30 30 Average Capacity 19 | 7 11 30 Most Carried 18 | 8 18 18 Average Carried 11 | 6 7 16 Final Capacity 30 | 8 30 30 Final Carried 18 | 7 18 16 Class Distribution -------------------- 52% | Hauler-Mutant 47% | Mutant Dominant Class ---------------- Mutant | -10/Materials Hauler-Mutant | -9/Materials Resources | -11 -10 -9 ----------- Run | Scr Mat Mat Matter Collected 388 | 266 36 86 Remotely . | . . . Salvage Created 237 | 36 41 160 Parts 17 | 4 6 7 Haulers Intercepted . | . . . Recyclers Shooed . | . . . Parts Field Recycled . | . . . Retrieved Matter . | . . . Parts Self-Destructed . | . . . Prevented . | . . . Kills | -11 -10 -9 ------- Run | Scr Mat Mat Combat Hostiles Destroyed 7 | . 3 4 Guns 6 | . 3 3 Classes Destroyed 4 | 1 1 2 Tunneler 2 | 2 . . Swarmer 3 | . 3 . Grunt 3 | . . 3 Sentry 1 | . . 1 Best Kill Streak 3 | 2 3 1 Combat Bots Only 3 | . 3 1 Max Kills in Single Turn 1 | 1 1 1 Gunslinging . | . . . Exploded . | . . . Melee . | . . . Uniques/NPCs Destroyed . | . . . Combat | -11 -10 -9 -------- Run | Scr Mat Mat Damage Taken 998 | . 57 941 Core 208 | . . 208 Absorbed by Shields . | . . . Core Remaining (%) 100 | 100 100 . Volleys Fired 30 | 5 7 18 Largest 2 | 2 2 2 Hottest 40 | 40 40 40 Shots Fired 58 | 10 14 34 Gun 58 | 10 14 34 Cannon . | . . . Launcher . | . . . Special . | . . . Kinetic 58 | 10 14 34 Thermal . | . . . Explosive . | . . . Electromagnetic . | . . . Robot Hit Streak 9 | 8 5 9 Robot Miss Streak 2 | . 2 2 Penetration Max . | . . . Secondary Targets . | . . . Shots Hit Robots 57 | 8 9 40 Core Hits 15 | 4 4 7 Critical Kills . | . . . Critical Parts Destroyed 1 | . . 1 Critical Strikes 2 | . . 2 Smash 2 | . . 2 Melee Attacks 16 | . . 16 Impact 16 | . . 16 Slashing . | . . . Piercing . | . . . Sneak Attacks . | . . . Combat Hostiles . | . . . Follow-up Attacks . | . . . Damage Inflicted 603 | 59 71 473 Guns 352 | 59 71 222 Cannons . | . . . Explosions . | . . . Melee 251 | . . 251 Ramming . | . . . Kinetic 352 | 59 71 222 Thermal . | . . . Explosive . | . . . Electromagnetic . | . . . Impact 251 | . . 251 Slashing . | . . . Piercing . | . . . Highest Corruption . | . . . Average Corruption . | . . . Corruption Purged . | . . . Corruption Blocked . | . . . Overload Shots . | . . . Overflow Damage 15 | . . 15 Projectiles . | . . . Explosions . | . . . Melee 15 | . . 15 Knockbacks . | . . . Impact . | . . . Kinetic . | . . . Secondary . | . . . Self-Inflicted Damage . | . . . Shots . | . . . Rammed . | . . . Targets Rammed . | . . . Kicked . | . . . Crushed . | . . . Highest Temperature 24 | . . 24 Average Temperature 6 | . . 6 Received Heat Transfer 387 | . . 387 Siege Activations . | . . . Robots Corrupted . | . . . Combat Hostiles . | . . . Parts Fried 1 | . . 1 Impact Corruptions 1 | . . 1 Robots Melted . | . . . Combat Hostiles . | . . . Parts Melted . | . . . Heat Transferred . | . . . Parts Sabotaged . | . . . Parts Stolen . | . . . Parts Stripped . | . . . Power Chain Reactions . | . . . Missiles Intercepted . | . . . Alert | -11 -10 -9 ------- Run | Scr Mat Mat Peak Influence 120 | 10 120 65 Initial 9 | . 6 9 Average 24 | 2 27 23 Maximum Alert Level . | . . . Low Security (%) 100 | 100 100 100 Level 1 . | . . . Level 2 . | . . . Level 3 . | . . . Level 4 . | . . . Level 5 . | . . . High Security . | . . . Max Security . | . . . Squads Dispatched 1 | . . 1 Investigation 1 | . . 1 Extermination . | . . . Reinforcement . | . . . Assault . | . . . Garrison . | . . . Intercept . | . . . Searches Triggered . | . . . Construction Impeded . | . . . Haulers Reinforced . | . . . Active Scanning Responses . | . . . Cargo Convoy Interrupts . | . . . Stealth | -11 -10 -9 --------- Run | Scr Mat Mat Distress Signals . | . . . Communications Jammed . | . . . Distress Signals . | . . . Times Spotted 17 | . 9 8 Peak Tracking Total 4 | . 3 4 Tactical Retreats 1 | . . 1 Traps | -11 -10 -9 ------- Run | Scr Mat Mat Traps Triggered . | . . . Indirectly . | . . . Trap Hack Attempts . | . . . Triggered . | . . . Disarmed . | . . . Reprogrammed . | . . . Reused . | . . . Traps Extracted . | . . . Installed . | . . . Triggered . | . . . Machines | -11 -10 -9 ---------- Run | Scr Mat Mat Machines Disabled . | . . . Max in Single Turn . | . . . Machines Sabotaged . | . . . Garrisons Compromised . | . . . Overloaded Fab Kills . | . . . Hacking | -11 -10 -9 --------- Run | Scr Mat Mat Machines Accessed 4 | . 1 3 Terminals 3 | . 1 2 Fabricators . | . . . Repair Stations . | . . . Recycling Units 1 | . . 1 Scanalyzers . | . . . Garrison Access . | . . . Total Hacks 11 | . 2 9 Successful 5 | . 1 4 Failed 6 | . 1 5 Catastrophic 1 | . . 1 Database Lockouts . | . . . Manual . | . . . Terminals 10 | . 2 8 Fabricators . | . . . Repair Stations . | . . . Recycling Units 1 | . . 1 Scanalyzers . | . . . Garrison Access . | . . . Terminal Hacks 4 | . 1 3 Robot Analysis 1 | . . 1 Terminal Index 1 | . 1 . Dispatch Records 1 | . . 1 Zone Layout 1 | . . 1 Fabricator Hacks . | . . . Repair Station Hacks . | . . . Recycling Unit Hacks 1 | . . 1 Report Inventory 1 | . . 1 Scanalyzer . | . . . Garrison Access Hacks . | . . . Unauthorized Hacks . | . . . Terminals . | . . . Fabricators . | . . . Repair Stations . | . . . Recycling Units . | . . . Scanalyzers . | . . . Garrison Access . | . . . Data Cores Recovered . | . . . Used . | . . . Hacking Detections 3 | . 1 2 Full Trace Events 1 | . . 1 Feedback Events . | . . . Feedback Blocked . | . . . Robot Schematics Acquired . | . . . Robots Built . | . . . Authchips . | . . . Time . | . . . Total Robot Build Rating . | . . . Part Schematics Acquired . | . . . Parts Built . | . . . Authchips . | . . . Time . | . . . Total Part Build Rating . | . . . Parts Repaired . | . . . Time . | . . . Parts Recycled . | . . . Recycled Matter . | . . . Retrieved Matter . | . . . Retrieved Components . | . . . Parts Scanalyzed . | . . . Part Schematics Acquired . | . . . Parts Damaged . | . . . Bothacking | -11 -10 -9 ------------ Run | Scr Mat Mat Used RIF Installer . | . . . Robots Hacked . | . . . Non-combat . | . . . Combat . | . . . Robot Hacks Applied . | . . . Relay Couplers Released . | . . . Fabnet Peak Effective % . | . . . Robots Rewired . | . . . Allies Hacked . | . . . Hacks Repelled . | . . . Allies | -11 -10 -9 -------- Run | Scr Mat Mat Total Allies . | . . . Largest Group . | . . . Highest-Rated Group . | . . . Highest-Rated Ally . | . . . Total Orders . | . . . Ally Attacks . | . . . Total Damage . | . . . Kills . | . . . Allies Corrupted . | . . . Allies Melted . | . . . Intel | -11 -10 -9 ------- Run | Scr Mat Mat Robot Analysis Total 1 | . . 1 Derelict Logs Recovered . | . . . Drone Launches . | . . . Drone Recoveries . | . . . Exploration | -11 -10 -9 ------------- Run | Scr Mat Mat Turns Passed 2722 | 110 1416 1196 Spaces Moved 567 | 69 359 139 Core 45 | 18 . 27 Treads 209 | . 97 112 Legs . | . . . Wheels 313 | 51 262 . Hover . | . . . Flight . | . . . Fastest Speed 50 | 50 80 400 Average Speed 289 | 82 136 788 Slowest Speed 2400 | 200 400 2400 Overloaded Moves . | . . . Propulsion Burnouts . | . . . Robots Hopped . | . . . Cave-ins Triggered . | . . . Exploration Rate (%) 16 | 4 30 14 Regions Visited 2 Branch Regions . Pre-discovered Areas . | . . . Known Exits Taken . | . . . Unknown Exits Taken 2 | 1 1 . Scrap Searched . | . . . Spaces Dug . | . . . Terrain Destroyed . | . . . Melee . | . . . Projectile . | . . . AOE . | . . . Terrain Rammed . | . . . Walls Destroyed . | . . . Machines Disabled . | . . . Actions | -11 -10 -9 --------- Run | Scr Mat Mat Total 1574 | 111 1279 184 Wait 911 | 21 885 5 Move 565 | 68 358 139 Hop . | . . . Pick Up 25 | 9 16 . Fast Attach 10 | 5 4 1 Attach 5 | 2 . 3 Detach 3 | . 2 1 Swap 1 | 1 . . Drop 8 | . 7 1 Fire 30 | 5 7 18 Melee 16 | . . 16 Ram . | . . . Kick . | . . . Crush . | . . . Escape Stasis . | . . . Rewire . | . . . Trap . | . . . Miscellaneous . | . . . Route ------- -11/Scrapyard -10/Materials -9/Materials History --------- Turn | Location | Event 6 | -11/Scrapyard | Discovered new exit (range 15) 111 | -11/Scrapyard | Entered Materials 302 | -10/Materials | Build established: Mutant 704 | -10/Materials | Discovered new exit (range 14) 1527 | -10/Materials | Entered another Materials area 1527 | -9/Materials | Evolved 2 slots: Propulsion x1, Utility x1 1607 | -9/Materials | Build established: Hauler-Mutant 2097 | -9/Materials | Lost 6 parts (1p2n1u2w) 2723 | -9/Materials | Core integrity fell below 50% 2723 | -9/Materials | Self-destructed Last Messages --------------- 02066_ Lgt. Treads destroyed. 02069_ Critical hit (Burn: +37). 02072_ Y-45 Defender suffers critical hit (Smash). 02072_ Destroyed Lgt. Treads. 02072_ Y-45 Defender system corrupted by crushing effect. 02073_ Y-45 Defender system terminally corrupted. 02073_ Heat Sink fried. 02106_ R-06 Scavenger collects Corrupted Hvy. Assault Rifle. 02125_ K-01 Serf collects debris. 02243_ Acquired 36 matter. 02507_ Connecting with Recycling Unit... >>Recycling(Report) Matter reserves: 0 Inventory: Spread Laser (41%) Sml. Laser (90%) Ion Engine (76%) Sml. Laser (67%) Heat Sink (86%) [Achievement: This Is Interesting...] Map ----- +----------------------------------------------------+ | ?????????????????????????????????????????????????? | | ?????????????????????????????????????????????????? | | ?????????????????????????????????????????????????? | | ?????????????????????????????????????????????????? | | ?????????????????????????????????????????????????? | | ?????????????????????????????????????????????????? | | ?????????????????????????????????????????????????? | | ?????????????????????????????????????????????????? | | ?????????????????????????????????????????????????? | | ?????????????????????????????????????????????????? | | ?????????????????????????????????????????????????? | | ?????????????????????????????????????????????????? | | ?# ?????????????????????????????????????????? | | ?" ???????????????????????????????????????? | | ?T ???????????????????????????????????????? | | ?" "???????????????????????????????????????? | | ?# ! """?????????????????????????????????????? | | ?# """??# ?????????????????????????????????? | | ?# ? #??????????????????????????????????? | | ?# ]]] #??###########?????????????????????? | | ## ]] """ #### #?????????????????????? | | ?# ^]] """ ##?# #?????????????????????? | | ?# """ ???# "Y" #????"????????????????? | | ?# ????# [ """ #??""""???????????????? | | ?# #######+###### """""???????????????? | | ?# s @ s """""???????????????? | | ## ###+######## ######### """ ??????????????? | | ?# + T #####+###???????? ?????????????? | | ?# #### ## #??????????#/###????????????? | | ## #??# """" ## % #???????????????????????????? | | ## ##?# """" ## !!* #???????????????????????????? | | ?# #??# """" ## %!!* ###????#????????????????????? | | ?# #??# ## !* #???????????????????????????? | | ?# #??######### #???????????????????????????? | | ## ###############+##########????????????????????? | | ?# ## ????????????????? | | ?# ## ^ ???????????????? | | ?# ## % ^ ????????????????? | | ##+## #################+### ?????????????????? | | # #??#???##????????????????????????????????? | | "" # ###########?#????????????????????????????? | | "" # # #??#? ?????????????????????????? | | "" # # ##?#???????????????????????????? | | # # [ #??????????????????????????????? | | "" # # #??????????????????????????????? | | ""* + + """ """ #????#?????????????????????????? | | "" # # """ """ ##??????#??????????????????????? | | # # """ """ #????#?????????????????????????? | | " # # #??????????????????????????????? | | ################?????????????????????????????? | +----------------------------------------------------+ Best States ------------- Heat Dissipation 28 Energy Generation 10 Energy Capacity 250 Matter Stores 300 Matter Capacity 300 Sight Range 16 Terrain Scan Range 16 Terrain Scan Density 10 Evasion (%) 44 Recoil Reduction 2 Item Schematics ----------------- None Robot Schematics ------------------ None Fabricated ------------ Nothing Alien Tech Used ----------------- None Achievements -------------- This Is Interesting... Challenges ------------ None Game ------ Seed UtilitySystemFlamer Manual? 0 Play Time 00:12:55 Cumulative 31.3 hours Start 2022.06.25 @ 11:29:51 End 2022.06.25 @ 11:52:32 Sessions 1 Manual Loads 0 Difficulty Rogue Special Mode None Game No. 61 Rogue 61 Adventurer 0 Explorer 0 Win Type - Total 0 Types 0/0/0/0/0/0/0/0/0 Lore% 25 Gallery% 32 Achievement% 26 Wizard Run 0 Options --------- ASCII 0 Keyboard 0 Movement Numpad Keybinds 0 Fullscreen 2 Font 18/SmallcapsGlow Map View 76x50 Tactical HUD 1 Map Filters NONE Filters NONE Steam 1 RUN: 37ded2a3-f664-42de-83b1-a59c1a224a00